{"text_format":"3","workbook":"xlsx","n_sheets":1,"sheets":["分组"],"not_rendered":{"defined_names":3},"read":"whole","date_system":"1900"}

{"sheet":"分组","index":0,"n_rows":59,"n_cols":7,"rows_kept":59,"merged":[[1,0,1,6],[2,0,10,0],[11,0,19,0],[20,0,28,0],[29,0,46,0],[47,0,58,0]]}
["附件4："]
["南京江北新区2025年教师招聘合并招聘分组情况表"]
["初中语文\n（新教师）","初中语文（新教师）招聘单位","招聘数","初中语文1组（新教师）","初中语文2组（新教师）",null,"合计"]
[null,"南京市旭东中学",3,1,2,null,{"$f":"SUM(D4:F4)","v":3}]
[null,"南京市扬子第一中学松杨路分校",2,1,1,null,2]
[null,"南京信息工程大学附属中学",2,1,1,null,2]
[null,"南京市第二十九中学柳洲东路分校",4,2,2,null,4]
[null,"南京江北新区实验初级中学",2,1,1,null,2]
[null,"南京一中明发滨江分校",2,1,1,null,2]
[null,"南京市第二十九中学天润城分校（初中）",2,1,1,null,2]
[null,"初中语文（新教师）合计",{"$f":"SUM(C4:C10)","v":17},{"$f":"SUM(D4:D10)","v":8},{"$f":"SUM(E4:E10)","v":9},null,17]
["初中数学\n（新教师）","初中数学（新教师）招聘单位","招聘数","初中数学1组（新教师）","初中数学2组（新教师）",null,"合计"]
[null,"南京市旭东中学",3,1,2,null,{"$f":"SUM(D13:F13)","v":3}]
[null,"南京市扬子第一中学松杨路分校",1,1,null,null,1]
[null,"南京信息工程大学附属中学",1,null,1,null,1]
[null,"南京市第二十九中学柳洲东路分校",4,2,2,null,4]
[null,"南京市第一中学泰山分校",1,1,null,null,1]
[null,"南京江北新区实验初级中学",1,null,1,null,1]
[null,"南京一中明发滨江分校",2,1,1,null,2]
[null,"初中数学（新教师）合计",{"$f":"SUM(C13:C19)","v":13},{"$f":"SUM(D13:D19)","v":6},{"$f":"SUM(E13:E19)","v":7},null,{"$f":"SUM(G13:G19)","v":13}]
["初中英语\n（新教师）","初中英语（新教师）招聘单位","招聘数","初中英语1组（新教师）","初中英语2组（新教师）",null,"合计"]
[null,"南京市旭东中学",3,2,1,null,{"$f":"SUM(D22:F22)","v":3}]
[null,"南京市扬子第一中学松杨路分校",1,1,null,null,1]
[null,"南京信息工程大学附属中学",1,null,1,null,1]
[null,"南京市第二十九中学柳洲东路分校",4,2,2,null,4]
[null,"南京江北新区实验初级中学",2,1,1,null,2]
[null,"南京一中明发滨江分校",2,1,1,null,2]
[null,"南京市第二十九中学天润城分校（初中）",2,1,1,null,2]
[null,"初中英语（新教师）合计",{"$f":"SUM(C22:C28)","v":15},{"$f":"SUM(D22:D28)","v":8},{"$f":"SUM(E22:E28)","v":7},null,{"$f":"SUM(G22:G28)","v":15}]
["小学语文\n（新教师）","小学语文（新教师）招聘单位","招聘数","小学语文1组（新教师）","小学语文2组（新教师）","小学语文3组（新教师）","合计"]
[null,"南京信息工程大学附属实验小学",2,1,null,1,{"$f":"SUM(D31:F31)","v":2}]
[null,"南京市南化第四小学",2,null,1,1,2]
[null,"南京市南化实验小学",3,1,1,1,3]
[null,"南京市琅琊路小学柳洲东路分校",2,null,1,1,2]
[null,"南京江北新区高新实验小学",1,1,null,null,1]
[null,"南京江北新区鼎泰实验小学",1,null,1,null,1]
[null,"南京江北新区泰山小学",1,null,null,1,1]
[null,"南京琅小明发南浦路分校",1,1,null,null,1]
[null,"南京江北新区浦口实验小学",2,null,1,1,2]
[null,"南京市琅琊路小学明发滨江分校",2,1,1,null,2]
[null,"南京晓庄学院顶山实验小学",1,null,null,1,1]
[null,"南京江北新区浦洲路小学",1,null,1,null,1]
[null,"南京工业大学实验小学",2,1,1,null,2]
[null,"南京一中江北新区教育集团第一小学",1,null,null,1,1]
[null,"南京一中江北新区教育集团第二小学",1,1,null,null,1]
[null,"南京市第二十九中学天润城分校（小学）",4,2,1,1,4]
[null,"小学语文（新教师）合计",{"$f":"SUM(C31:C46)","v":27},9,9,9,27]
["小学语文\n（经验教师）","小学语文（经验教师）招聘单位","招聘数","小学语文（经验教师）1组","小学语文（经验教师）2组",null,"合计"]
[null,"南京信息工程大学附属实验小学",1,1,null,null,{"$f":"SUM(D49:F49)","v":1}]
[null,"南京市葛塘中心小学",1,null,1,null,1]
[null,"南京市长城小学",1,1,null,null,1]
[null,"南京市琅琊路小学柳洲东路分校",4,2,2,null,4]
[null,"南京江北新区泰山小学",1,1,null,null,1]
[null,"南京江北新区浦口实验小学",2,1,1,null,2]
[null,"南京市琅琊路小学明发滨江分校",1,null,1,null,1]
[null,"南京工业大学实验小学",1,null,1,null,1]
[null,"南京一中江北新区教育集团第一小学",1,null,1,null,1]
[null,"南京一中江北新区教育集团第二小学",1,1,null,null,1]
[null,"小学语文（经验教师）合计",{"$f":"SUM(C49:C58)","v":14},{"$f":"SUM(D49:D58)","v":7},{"$f":"SUM(E49:E58)","v":7},null,{"$f":"SUM(G49:G58)","v":14}]